bitfinex/quotes_ETHUSD_20250519
["timestamp","ask_amount","ask_price","bid_price","bid_amount"]
[1747647662249,4.14742553,2411.2,2410.8,1.70215764]
[1747647662870,12.4132922,2411.7,2410.9,4.18926558]
[1747647662871,16.894,2411.7,2410.9,4.18926558]
[1747647663026,4.14688055,2411.5,2411.0,4.14756196]
[1747647663367,1.63707528,2412.0,2411.3,4.14714054]
[1747647663662,4.953332,2412.3,2411.4,4.64417239]
[1747647663847,4.14662464,2411.6,2411.5,0.12954976]
[1747647664047,4.14662464,2411.6,2411.2,0.8256]
[1747647664280,4.14679659,2411.5,2411.2,0.8256]
[1747647664443,4.14657275,2411.7,2411.2,4.97284326]
[1747647664643,4.1466319,2411.6,2411.2,2.54943619]
[1747647664870,4.1466319,2411.6,2411.3,0.12953407]
[1747647665082,4.14673292,2411.6,2411.3,0.12953407]
[1747647665262,4.14653652,2411.7,2411.2,6.69667778]
[1747647665767,4.14653652,2411.7,2411.3,4.14713424]
[1747647665969,8.0,2411.9,2411.2,2.54943619]
[1747647666269,4.14681546,2411.5,2411.2,0.8256]
[1747647666572,4.14681546,2411.5,2411.3,0.12954056]
[1747647666928,4.14661706,2411.7,2411.3,4.27666273]
[1747647667132,8.0,2412.0,2411.2,0.8256]
[1747647667327,4.14661904,2411.7,2411.2,5.86720891]
[1747647667743,4.14663194,2411.6,2411.2,1.71996]
[1747647667959,4.14686152,2411.5,2411.2,1.71996]
[1747647668167,4.14686152,2411.5,2411.3,0.12953527]
[1747647668367,6.64071127,2412.0,2411.3,0.12953527]
[1747647668567,4.14657886,2411.7,2411.3,0.12953527]
[1747647668841,4.14638548,2411.8,2411.4,0.12953527]
[1747647669067,4.146468,2411.7,2411.2,5.8671523]
[1747647669372,4.146468,2411.7,2411.3,4.14713624]
[1747647669530,4.146468,2411.7,2411.3,4.27667165]
[1747647669731,4.146468,2411.7,2411.3,1.46912714]
[1747647669943,4.146468,2411.7,2411.4,0.12953541]
[1747647670581,4.146468,2411.7,2411.3,5.48671665]
[1747647671572,4.14613143,2411.9,2411.5,4.90822665]
[1747647671776,8.7794,2412.3,2411.5,0.7615]
[1747647672015,4.14524085,2412.5,2412.0,0.7615]
[1747647672185,4.14543677,2412.3,2412.0,0.7615]
[1747647672358,4.14543677,2412.3,2411.4,0.12952256]
[1747647672359,16.169,2412.3,2411.4,0.12952256]
[1747647672676,16.169,2412.3,2411.3,10.21909173]
[1747647672677,4.14661993,2411.7,2411.3,8.8795]
[1747647672877,4.14663215,2411.6,2411.4,0.23029584]
[1747647673052,4.14655488,2411.7,2411.5,0.12953153]
[1747647673639,4.14655488,2411.7,2411.4,0.23029584]
[1747647673877,4.14655488,2411.7,2411.3,8.8795]
[1747647674179,4.14703835,2411.4,2411.1,1.06795849]
[1747647674412,8.202,2411.8,2411.2,4.1472416]
[1747647674714,12.34835757,2411.8,2411.3,4.2765482]
[1747647674885,12.34835757,2411.8,2411.3,4.50680415]
[1747647675043,4.1465288,2411.7,2411.4,0.12953759]
[1747647675683,4.14636271,2411.8,2411.5,0.8151]
[1747647675851,4.14649338,2411.7,2411.5,0.94463759]
[1747647676300,4.14649338,2411.7,2411.5,0.8151]
[1747647677079,4.14662464,2411.6,2411.5,0.8151]
[1747647677382,4.14662464,2411.6,2411.2,0.8151]
[1747647677572,4.14689041,2411.5,2411.2,0.8151]
[1747647677774,4.14696856,2411.4,2411.3,0.12954022]
[1747647678346,4.14696856,2411.4,2411.2,0.8151]
[1747647678780,4.14681787,2411.5,2411.2,0.8151]
[1747647678984,4.14705015,2411.4,2411.2,0.8151]
[1747647679182,4.14731254,2411.2,2411.1,8.118]
[1747647679407,4.14748455,2411.1,2411.0,0.7832]
[1747647679689,4.1474337,2411.2,2411.0,0.7832]
[1747647679890,0.91246992,2411.5,2410.9,0.18836528]
[1747647679891,4.14765657,2411.0,2410.9,0.18836528]
[1747647680463,12.14765657,2411.0,2410.9,0.18836528]
[1747647680890,12.97715657,2411.0,2410.9,0.18836528]
[1747647681350,4.97725171,2411.0,2410.3,8.94067217]
[1747647681551,12.14724749,2411.3,2410.5,0.7693]
[1747647681764,12.14724749,2411.3,2410.7,4.14804339]
[1747647681765,4.14738387,2411.2,2410.7,4.14804339]
[1747647681966,8.199,2411.4,2410.9,4.14768481]
[1747647682169,4.14680071,2411.5,2411.1,0.7998]
[1747647682893,4.14731254,2411.2,2411.1,0.7998]
[1747647683138,8.04151774,2411.7,2410.8,8.9033]
[1747647683255,4.14748601,2411.1,2410.8,8.9033]
[1747647683454,4.14748601,2411.1,2410.9,0.1295613]
[1747647684103,1.73351055,2411.6,2411.0,0.33286828]
[1747647684284,4.14689015,2411.5,2411.1,4.14746872]
[1747647684484,4.14689015,2411.5,2411.0,4.35088343]
[1747647684794,4.14714054,2411.3,2411.2,0.12955077]
[1747647684994,4.14714054,2411.3,2411.2,0.12955076]
[1747647685492,4.14697796,2411.4,2411.2,0.12955132]
[1747647685659,4.14689064,2411.5,2411.2,1.1474583]
[1747647685859,4.14689064,2411.5,2411.2,1.01790698]
[1747647686158,4.14652776,2411.7,2411.2,5.16510634]
[1747647686562,4.91865635,2411.8,2411.2,1.94916502]
[1747647686755,4.14635723,2411.8,2411.3,4.27657348]
[1747647686997,8.2,2412.6,2411.5,0.8146]
[1747647687223,4.14543733,2412.3,2411.7,4.9384397]
[1747647687501,4.14606778,2412.0,2411.8,0.36027239]
[1747647687670,9.71983,2412.5,2412.0,4.14586113]
[1747647687880,1.71983,2412.5,2411.9,0.12951284]
[1747647688194,4.14556347,2412.3,2412.1,0.765]
[1747647688701,1.71983,2412.5,2412.1,0.765]
[1747647688933,4.14553505,2412.3,2412.1,0.765]
[1747647689063,4.14553809,2412.3,2412.1,0.765]
[1747647689263,4.14568563,2412.2,2411.8,9.0211]
[1747647689464,4.14524954,2412.4,2411.9,0.36019534]
[1747647689766,4.14593698,2412.0,2411.9,0.36019534]
[1747647690298,4.14593698,2412.0,2411.8,9.0211]
[1747647690602,4.14610887,2411.9,2411.8,8.2]
[1747647690762,4.14610887,2411.9,2411.8,8.32951627]
[1747647690958,4.14610887,2411.9,2411.8,8.2]
[1747647691189,4.14610887,2411.9,2411.8,0.12951939]
[1747647691389,4.14610887,2411.9,2411.6,0.7715]
[1747647691713,4.96511616,2412.2,2411.6,0.7715]
[1747647691995,4.14637051,2411.8,2411.7,0.12952353]
[1747647692201,4.1465874,2411.7,2411.4,9.27085849]
[1747647692492,4.14662687,2411.6,2411.5,0.23079658]
[1747647692900,4.14652083,2411.7,2411.5,0.36032976]
[1747647693089,4.14610887,2411.9,2411.4,9.27085849]
[1747647693266,4.14610887,2411.9,2411.4,11.46942914]
[1747647693465,4.14594404,2412.0,2411.4,9.27085849]
[1747647693682,4.14674448,2411.6,2411.4,9.27085849]
[1747647693881,4.14654826,2411.7,2411.5,0.20334181]
[1747647694087,4.14647752,2411.7,2411.5,0.33287483]
[1747647694508,4.14647752,2411.7,2411.5,0.20334181]
[1747647694908,4.14662464,2411.6,2411.5,0.20334181]
[1747647695269,4.14655111,2411.7,2411.5,0.20334181]
[1747647695464,4.14655111,2411.7,2411.4,9.018]
[1747647695669,4.14593698,2412.0,2411.4,9.018]
[1747647695997,4.14676681,2411.6,2411.4,9.018]
[1747647696300,4.14679659,2411.5,2411.4,9.018]
[1747647696501,4.14679659,2411.5,2411.4,8.199]
[1747647696804,4.14679659,2411.5,2411.4,0.12954217]
[1747647697005,4.14679659,2411.5,2411.4,0.33275913]
[1747647697312,5.05673293,2411.5,2411.4,0.20321696]
[1747647698202,4.14733745,2411.2,2411.0,9.27025849]
[1747647698369,4.14724365,2411.3,2411.0,9.27025849]
[1747647698571,4.14731254,2411.2,2411.1,0.12955673]
[1747647699100,4.14731254,2411.2,2411.0,0.25285849]
[1747647699403,4.14731254,2411.2,2410.8,0.20331685]
[1747647699583,4.14731254,2411.2,2410.8,1.98053863]
[1747647699786,4.14731254,2411.2,2410.9,0.12956021]
[1747647700184,4.14731254,2411.2,2411.0,0.12956021]
[1747647700588,4.14748455,2411.1,2411.0,0.12956021]
[1747647700897,4.14731478,2411.2,2410.9,0.12956021]
[1747647701611,4.14748619,2411.1,2410.9,0.12956021]
[1747647701771,4.14765657,2411.0,2410.8,0.12956021]
[1747647701966,4.14782861,2410.9,2410.8,0.12956021]
[1747647702685,4.14775588,2411.0,2410.8,0.12956021]
[1747647703575,4.14782861,2410.9,2410.8,0.12956021]
[1747647704088,4.14800066,2410.8,2410.7,8.199]
[1747647704688,4.14782861,2410.9,2410.7,8.32857769]
[1747647705181,4.1485169,2410.5,2410.4,0.25285849]
[1747647705381,4.19003464,2410.5,2410.4,0.25285849]
[1747647705610,0.8329,2411.1,2410.4,5.15437965]
[1747647705774,18.271,2411.4,2410.5,0.86998301]
[1747647706108,4.14721523,2411.3,2410.8,4.14790875]
[1747647706315,4.14705818,2411.4,2411.0,0.8285]
[1747647706616,4.1472359,2411.3,2411.0,0.8285]
[1747647706779,4.14732857,2411.2,2411.0,0.8285]
[1747647707178,9.0224,2411.5,2410.9,0.64536234]
[1747647707179,4.14748455,2411.1,2410.9,0.64536234]
[1747647707477,4.91735531,2411.1,2411.0,0.12956304]
[1747647707697,21.17187305,2411.1,2411.0,0.12956304]
[1747647708020,4.14834481,2410.6,2410.3,0.82747217]
[1747647708430,4.1482467,2410.7,2410.4,0.12959738]
[1747647708589,4.1482467,2410.7,2410.4,0.64018877]
[1747647708793,4.14834891,2410.6,2410.4,0.64018877]
[1747647709131,4.14834891,2410.6,2410.5,0.12959738]
[1747647709531,4.14834891,2410.6,2410.3,0.82747217]
[1747647709737,4.1485587,2410.5,2410.3,0.82747217]
[1747647709934,4.14843567,2410.6,2410.3,0.82747217]
[1747647710098,4.14826291,2410.7,2410.3,4.97631976]
[1747647710299,4.14826291,2410.7,2410.4,0.12959231]
[1747647710935,4.14826291,2410.7,2410.3,0.82747217]
[1747647711449,4.14826291,2410.7,2410.3,4.97633198]
[1747647711640,4.1480066,2410.8,2410.4,4.14868901]
[1747647711641,4.14804744,2410.8,2410.4,4.14868901]
[1747647711936,0.7698,2411.1,2410.6,4.14832087]
[1747647711937,4.14753989,2411.1,2410.6,4.14832087]
[1747647712139,4.14753989,2411.1,2410.3,0.9494883]
[1747647712140,0.7634,2411.5,2410.9,4.14773163]
[1747647712431,4.14724428,2411.3,2410.7,1.00393076]
[1747647712596,8.22,2411.5,2411.1,4.14733506]
[1747647712805,12.36691647,2411.5,2411.0,0.7786]
[1747647712997,4.14699885,2411.4,2411.0,5.41888722]
[1747647713321,8.22,2411.5,2411.0,1.27123713]
[1747647713519,4.14704881,2411.4,2411.1,0.12955171]
[1747647714034,4.14704881,2411.4,2411.0,9.49123713]
[1747647715104,4.14704881,2411.4,2411.1,0.12955235]
[1747647715304,0.0008,2411.6,2411.2,4.14731254]
[1747647715544,0.0008,2411.6,2411.1,1.5063971]
[1747647715712,0.0008,2411.6,2411.3,0.7616]
[1747647715912,0.0008,2411.6,2411.5,4.14679659]
[1747647716113,0.0008,2411.6,2411.5,13.12839659]
[1747647716313,0.0008,2411.6,2411.5,14.40182408]
[1747647716612,0.0008,2411.6,2411.5,14.73371362]
[1747647716801,0.0008,2411.6,2411.5,23.28371362]
[1747647717002,0.0008,2411.6,2411.5,23.5137999]
[1747647717402,0.0008,2411.6,2411.5,15.2937999]
[1747647717636,0.0008,2411.6,2411.5,31.7977999]
[1747647718627,0.0008,2411.6,2411.5,32.10741481]
[1747647719827,0.0008,2411.6,2411.5,31.55741481]
[1747647720029,0.0008,2411.6,2411.5,23.2477999]
[1747647720231,0.0008,2411.6,2411.5,9.54257582]
[1747647720771,0.0008,2411.6,2411.5,0.56197582]
[1747647721037,0.0008,2411.6,2411.5,0.12955235]
[1747647721240,0.0008,2411.6,2411.4,0.33653931]
[1747647721440,4.14752436,2411.6,2411.4,0.33653931]
[1747647721640,4.14679659,2411.5,2411.4,0.33653931]
[1747647721842,4.14749591,2411.6,2411.4,0.33653931]
[1747647722025,0.0008,2411.6,2411.4,0.33653931]
[1747647722228,4.14681924,2411.5,2411.2,8.218]
[1747647722538,0.0008,2411.6,2411.2,8.218]
[1747647722745,4.14686403,2411.5,2411.2,8.218]
[1747647722945,4.14744402,2411.6,2411.2,8.218]
[1747647723128,4.14749684,2411.6,2411.2,8.218]
[1747647723511,4.14682306,2411.5,2411.2,8.218]
[1747647723758,0.7872,2411.2,2410.8,0.25288893]
[1747647723959,16.57132081,2410.9,2410.8,0.25288893]
[1747647724242,33.09832081,2410.9,2410.8,0.25288893]
[1747647724641,34.085573,2410.9,2410.8,0.25288893]
[1747647725172,33.09832081,2410.9,2410.8,0.25288893]
[1747647725351,37.74651351,2410.9,2410.8,0.25288893]
[1747647725553,20.66951351,2410.9,2410.8,0.25288893]
[1747647725861,4.14868901,2410.4,2410.3,0.00487217]
[1747647726521,29.81507855,2410.4,2410.3,0.00487217]
[1747647726725,29.77356081,2410.4,2410.3,0.00487217]
[1747647727052,33.52940102,2410.4,2410.3,0.00487217]
[1747647729459,4.14868901,2410.4,2410.3,0.00487217]
[1747647730620,0.8262,2410.7,2410.3,0.00487217]
[1747647730820,4.14868901,2410.4,2410.3,0.00487217]
[1747647733456,20.37068901,2410.4,2410.3,0.00487217]
[1747647734677,21.17368901,2410.4,2410.3,0.00487217]
[1747647734866,25.07653903,2410.4,2410.3,0.00487217]
[1747647738079,25.62653903,2410.4,2410.3,0.00487217]
[1747647738385,25.62653903,2410.4,2410.1,0.04209884]
[1747647738386,0.8283,2410.3,2410.1,0.04209884]
[1747647738585,12.96695543,2409.2,2409.1,0.1]
[1747647738790,21.32995543,2409.2,2409.1,0.1]
[1747647738946,25.06394188,2409.2,2409.1,0.1]
[1747647740981,4.15075543,2409.2,2409.1,0.1]
[1747647741684,4.19227317,2409.2,2409.1,0.1]
[1747647742304,4.15075543,2409.2,2409.1,0.1]
[1747647742608,4.15064231,2409.3,2409.1,0.1]
[1747647742895,4.14994214,2409.7,2409.2,4.15074586]
[1747647743056,4.14994214,2409.7,2409.1,8.325]
[1747647743057,0.41499421,2409.7,2409.1,0.1]
[1747647743257,4.15075543,2409.2,2409.1,0.1]
[1747647743662,21.3072699,2409.6,2409.1,0.1]
[1747647743663,4.15049138,2409.4,2409.1,0.1]
[1747647743984,4.15051182,2409.4,2409.1,0.1]
[1747647744288,8.391,2409.6,2409.1,0.1]
[1747647744463,4.15034739,2409.5,2409.1,0.1]
[1747647744789,4.15067551,2409.3,2409.1,0.1]
[1747647745486,4.15045476,2409.4,2409.1,0.1]
[1747647745801,4.15064485,2409.3,2409.1,0.1]
[1747647747376,4.15048997,2409.4,2409.1,0.1]
[1747647748257,4.15036666,2409.5,2409.1,0.1]
[1747647748612,4.15015545,2409.6,2409.2,4.95684731]
[1747647748787,4.14971923,2409.9,2409.2,4.95678628]
[1747647749096,4.14973755,2409.8,2409.4,4.15037918]
[1747647749278,4.14973755,2409.8,2409.3,4.15050446]
[1747647749458,4.14990672,2409.7,2409.2,4.95678579]
[1747647749658,4.150028,2409.7,2409.3,4.15057777]
[1747647749855,4.14998105,2409.7,2409.2,6.3427725]
[1747647750156,4.14937759,2410.0,2409.2,0.8061]
[1747647750364,16.364,2410.1,2409.2,0.8061]
[1747647750365,4.15031721,2409.5,2409.2,0.8061]
[1747647750979,0.7847,2409.8,2409.2,8.377]
[1747647751192,4.15031377,2409.5,2409.2,8.377]
[1747647751901,4.14979481,2409.8,2409.3,4.9173644]
[1747647752112,4.14971116,2409.9,2409.3,4.91728377]
[1747647752695,4.14971116,2409.9,2409.4,4.15031583]
[1747647753208,4.14965796,2409.9,2409.4,4.1503401]
[1747647753504,4.14987701,2409.8,2409.3,4.9172283]
[1747647753670,4.14964238,2409.9,2409.5,0.12963796]
[1747647754174,4.14964238,2409.9,2409.6,0.12963796]
[1747647754584,0.7839,2410.9,2409.9,0.7707]
[1747647754783,4.14826298,2410.7,2410.2,0.7707]
[1747647754996,4.14748455,2411.1,2410.3,12.52581818]
[1747647755199,4.14776903,2411.0,2410.5,4.14848872]
[1747647755585,4.1474103,2411.2,2410.7,4.9565509]
[1747647755789,17.59243199,2411.5,2410.7,0.8084]
[1747647755987,4.14752741,2411.1,2410.7,4.95655991]
[1747647756211,17.59243199,2411.5,2410.8,4.14798068]
[1747647756524,2.19986242,2411.4,2410.9,4.1478054]
[1747647756687,2.19986242,2411.4,2410.8,8.376]
[1747647756688,4.9763167,2411.5,2411.0,4.14761952]
[1747647756885,4.9763167,2411.5,2411.1,4.14744938]
[1747647756886,0.82943199,2411.5,2411.1,4.14744938]
[1747647757089,4.97623424,2411.5,2411.2,0.8055]
[1747647758030,0.0008,2411.6,2411.3,12.52307027]
[1747647758177,0.0008,2411.6,2411.3,8.376]
[1747647758737,0.0008,2411.6,2411.3,12.52312179]
[1747647759879,0.0008,2411.6,2411.4,4.14692612]
[1747647760619,0.0008,2411.6,2411.3,8.376]
[1747647760620,0.0008,2411.6,2411.3,12.52306058]
[1747647760779,0.0008,2411.6,2411.3,8.376]
[1747647761192,0.0008,2411.6,2411.2,4.95272615]
[1747647761513,0.0008,2411.6,2411.3,20.88213054]
[1747647761810,0.0008,2411.6,2411.4,4.14694716]
[1747647762712,0.0008,2411.6,2411.3,20.88214051]
[1747647763032,4.14746876,2411.6,2411.4,8.351]
[1747647763383,4.14746876,2411.6,2411.5,8.373]
[1747647763896,4.14746876,2411.6,2411.2,1.71552085]
[1747647764095,4.14746876,2411.6,2411.3,8.373]
[1747647764717,4.14743594,2411.6,2411.3,8.373]
[1747647764917,4.14707133,2411.4,2411.2,9.1775]
[1747647766221,4.14714054,2411.3,2411.2,8.372]
[1747647766419,4.14714054,2411.3,2410.9,13.27418518]
[1747647766420,4.14732797,2411.2,2411.1,8.372]
[1747647766717,0.83017698,2411.6,2411.1,8.372]
[1747647766924,4.14703577,2411.4,2411.1,8.372]
[1747647767416,4.14714621,2411.3,2411.1,8.372]
[1747647767927,5.02989355,2411.5,2411.1,12.51943949]
[1747647768088,4.14687585,2411.5,2411.1,12.51943949]
[1747647768587,4.14687585,2411.5,2411.1,8.372]
[1747647768789,4.14696887,2411.4,2411.1,8.372]
[1747647769122,4.14710141,2411.4,2411.0,12.51964926]
[1747647769584,4.14699039,2411.4,2411.0,8.372]
[1747647769786,0.83017698,2411.6,2411.0,12.51965557]
[1747647769986,4.14751145,2411.6,2411.1,4.14742432]
[1747647770305,4.14687832,2411.5,2411.0,14.39032613]
[1747647770507,4.14687832,2411.5,2411.1,4.14747066]
[1747647770826,4.14701929,2411.4,2411.0,10.24277224]
[1747647771117,4.14701929,2411.4,2411.0,8.372]
[1747647771314,4.1472122,2411.3,2411.0,8.372]
[1747647771614,4.14705836,2411.4,2411.0,8.372]
[1747647771818,0.0008,2411.6,2411.0,8.372]
[1747647772185,0.0008,2411.6,2411.1,0.826]
[1747647772381,0.0008,2411.6,2411.4,4.146951]
[1747647772587,0.0008,2411.6,2411.5,12.51879659]
[1747647772999,0.0008,2411.6,2411.5,8.372]
[1747647774726,0.0008,2411.6,2411.5,12.51879659]
[1747647775103,0.0008,2411.6,2411.5,8.372]
[1747647776229,4.14742464,2411.6,2411.5,8.297]
[1747647777122,0.83019955,2411.6,2411.1,0.826]
[1747647777324,4.14688714,2411.5,2411.2,8.296]
[1747647777837,0.0008,2411.6,2411.2,8.296]
[1747647778040,4.14695454,2411.5,2411.2,8.296]
[1747647779343,0.0008,2411.6,2411.2,8.296]
[1747647779504,4.14714054,2411.3,2411.1,0.826]
[1747647779700,4.14731254,2411.2,2411.1,8.296]
[1747647779903,4.14714054,2411.3,2411.1,8.296]
[1747647779904,4.14723822,2411.3,2411.1,8.296]
[1747647780224,4.14689137,2411.5,2411.0,4.14763973]
[1747647780403,4.14756639,2411.6,2411.1,12.44346478]
[1747647780854,4.14681529,2411.5,2411.1,8.296]
[1747647781539,4.14712372,2411.4,2411.1,8.296]
[1747647783509,4.14718122,2411.3,2411.1,8.296]
[1747647784446,4.14718122,2411.3,2410.3,10.18885894]
[1747647784447,4.14809448,2410.8,2410.5,26.974]
[1747647784644,4.14793553,2410.9,2410.7,0.23094033]
[1747647784853,4.14773612,2411.0,2410.7,0.23094033]
[1747647785037,4.14773612,2411.0,2410.8,0.13208129]
[1747647785439,4.14773612,2411.0,2410.9,0.13208129]
[1747647786056,1.27821416,2411.2,2410.9,0.13208129]
[1747647786214,4.14738962,2411.2,2410.9,0.13208129]
[1747647786414,8.29487217,2411.2,2411.0,0.13208129]
[1747647786633,4.14748455,2411.1,2411.0,0.13208129]
[1747647787243,4.14731254,2411.2,2410.6,0.25288893]
[1747647787444,8.0,2411.3,2410.7,4.14814531]
[1747647787650,4.1474543,2411.2,2410.8,0.13208167]
[1747647788049,4.14748667,2411.1,2410.9,0.13208167]
[1747647788381,4.14765657,2411.0,2410.7,0.20255243]
[1747647788562,4.14784734,2410.9,2410.7,0.20255243]
[1747647788856,4.14784734,2410.9,2410.8,0.23094484]
[1747647789052,4.14776022,2411.0,2410.8,0.23094484]
[1747647789256,4.14782861,2410.9,2410.8,0.23094484]
[1747647789559,4.14773933,2411.0,2410.8,0.23094484]
[1747647789763,4.14773933,2411.0,2410.8,0.36298843]
[1747647789967,4.14773933,2411.0,2410.9,0.13204359]
[1747647790131,4.14773933,2411.0,2410.9,0.33459602]
[1747647790875,4.14754667,2411.1,2410.9,0.20255243]
[1747647791063,4.14708154,2411.4,2411.0,0.7692]
[1747647791266,4.14708154,2411.4,2411.0,1.28114854]
[1747647791426,4.14688863,2411.5,2411.1,0.13195011]
[1747647791869,4.14688863,2411.5,2411.2,0.20255243]
[1747647792053,4.14688863,2411.5,2411.2,0.33450254]
[1747647792267,4.14714054,2411.3,2411.2,0.33450254]
[1747647792465,4.14714054,2411.3,2411.2,0.20255243]
[1747647793879,4.14705734,2411.4,2411.2,0.20255243]
[1747647794273,4.14714054,2411.3,2411.2,0.20255243]
[1747647794581,4.14706125,2411.4,2411.2,0.20255243]
[1747647794780,4.14696019,2411.5,2411.2,0.20255243]
[1747647795082,4.14703905,2411.4,2411.2,0.20255243]
[1747647795385,4.14703905,2411.4,2411.3,0.20255243]
[1747647796086,4.14689116,2411.5,2411.3,0.20255243]
[1747647796446,4.14696856,2411.4,2411.3,0.20255243]
[1747647798284,0.0008,2411.6,2411.3,0.20255243]
[1747647798642,0.0008,2411.6,2411.3,1.05224365]
[1747647798847,4.14743591,2411.6,2411.3,1.05224365]
[1747647799145,0.0008,2411.6,2411.3,1.05224365]
[1747647799351,4.14696856,2411.4,2411.3,0.20255243]
[1747647799965,4.92336856,2411.4,2411.3,0.20255243]
[1747647800166,12.9648863,2411.4,2411.3,0.20255243]
[1747647800488,12.9648863,2411.4,2410.9,0.25288893]
[1747647800489,4.95775657,2411.0,2410.9,0.25288893]
[1747647800685,21.23027431,2411.0,2410.9,0.25288893]
[1747647800885,24.08964077,2411.0,2410.9,0.25288893]
[1747647801378,24.29498217,2411.0,2410.9,0.25288893]
[1747647801581,24.08964077,2411.0,2410.9,0.25288893]
[1747647801780,4.14863812,2410.5,2410.3,0.20208013]
[1747647802104,4.14860999,2410.5,2410.3,0.20208013]
[1747647802503,4.19020675,2410.4,2410.3,0.20208013]
[1747647802911,12.14868901,2410.4,2410.3,0.20208013]
[1747647803471,4.14920542,2410.1,2410.0,0.25288893]
[1747647805108,4.14937853,2410.0,2409.6,4.95295113]
[1747647805312,4.14937853,2410.0,2409.6,10.83342866]
[1747647805514,4.14947827,2410.0,2409.6,10.83342866]
[1747647805814,4.14958057,2409.9,2409.6,10.83342866]
[1747647805972,4.14947874,2410.0,2409.6,10.83342866]
[1747647806473,4.14959263,2409.9,2409.6,10.83342866]
[1747647806918,4.14946133,2410.0,2409.6,10.83342866]
[1747647807795,4.14946133,2410.0,2409.6,14.98349328]
[1747647808108,4.14946133,2410.0,2409.6,10.83342866]
[1747647808577,4.14911067,2410.2,2409.6,10.83342866]
[1747647808778,4.14911067,2410.2,2409.8,4.14972142]
[1747647809115,4.14884091,2410.4,2409.9,4.14946701]
[1747647809301,4.14886162,2410.3,2409.9,4.14946701]
[1747647809498,4.14918175,2410.2,2409.7,5.23315964]
[1747647809709,4.14886113,2410.3,2409.8,5.58311455]
[1747647809917,8.9903,2410.5,2409.6,9.1009]
[1747647810092,4.14951817,2410.0,2409.6,9.1009]
[1747647810295,4.14926802,2410.1,2409.6,13.2509166]
[1747647810479,4.14939419,2410.0,2409.6,9.1009]
[1747647810679,4.149283,2410.1,2409.6,15.3759917]
[1747647811033,4.14868901,2410.4,2409.6,15.3759917]
[1747647811191,4.1492788,2410.1,2409.7,4.1498897]
[1747647811392,4.1492753,2410.1,2409.7,4.14988442]
[1747647812401,4.14912468,2410.2,2409.7,4.14988442]
[1747647812606,4.14912468,2410.2,2409.8,1.01780829]
[1747647812913,4.14912468,2410.2,2409.8,5.16751954]
[1747647813104,4.14912468,2410.2,2409.8,1.01780829]
[1747647813313,4.14868901,2410.4,2409.8,1.01780829]
[1747647813486,4.14951393,2410.0,2409.6,9.1009]
[1747647813814,4.14951393,2410.0,2409.6,13.25093682]
[1747647814320,4.14930761,2410.1,2409.6,13.25093682]
[1747647815831,4.14912774,2410.2,2409.6,13.2508987]
[1747647816041,4.14920783,2410.1,2409.7,4.14974452]
[1747647816238,4.14910751,2410.2,2409.6,13.25090035]
[1747647816540,4.14930985,2410.1,2409.7,1.7401055]
[1747647817948,4.14930985,2410.1,2409.7,5.88999264]
[1747647818325,4.14930985,2410.1,2409.7,1.7401055]
[1747647818953,12.14877361,2410.4,2409.6,9.1009]
[1747647819255,4.14947105,2410.0,2409.6,9.1009]
[1747647819548,4.14944727,2410.0,2409.6,9.1009]
[1747647819747,4.14947832,2410.0,2409.6,13.25096326]
[1747647819947,4.14947832,2410.0,2409.6,14.99108288]
[1747647820452,4.1494432,2410.0,2409.6,14.99107649]
[1747647820608,4.14918696,2410.2,2409.7,4.1497993]
[1747647820812,4.14921516,2410.1,2409.6,10.84101962]
[1747647821035,4.14938143,2410.0,2409.6,14.99095035]
[1747647821233,4.14938143,2410.0,2409.7,1.40278975]
[1747647821641,4.14896531,2410.3,2409.8,4.14957587]
[1747647821823,4.14846356,2410.6,2409.9,0.04149302]
[1747647822038,8.31398806,2410.8,2409.9,0.04149302]
[1747647822039,4.14864066,2410.5,2410.0,4.94427248]
[1747647822850,4.14869264,2410.4,2410.0,4.94427248]
[1747647823048,0.5,2410.4,2410.1,4.14918353]
[1747647823251,0.5,2410.4,2410.1,4.14909943]
[1747647823544,0.5,2410.4,2410.0,4.9442817]
[1747647823748,0.5,2410.4,2410.1,5.05855651]
[1747647823952,4.14862291,2410.5,2410.1,5.05855651]
[1747647824158,4.14824991,2410.7,2410.2,4.14894178]
[1747647824351,4.14824991,2410.7,2410.2,4.14889423]
[1747647824352,4.14817272,2410.7,2410.2,4.14889423]
[1747647824519,8.29651493,2410.7,2410.2,4.14889423]
[1747647824723,4.14837017,2410.6,2410.2,4.97963607]
[1747647825452,4.14865221,2410.5,2410.2,0.83074184]
[1747647826161,4.93223931,2410.8,2410.2,4.97965154]
[1747647826357,0.8036,2411.2,2410.7,4.14809748]
[1747647826526,0.8036,2411.2,2410.6,12.3642467]
[1747647826527,4.14757577,2411.1,2410.6,12.3642467]
[1747647826726,4.14769387,2411.0,2410.6,8.216]
[1747647827134,4.14794798,2410.9,2410.6,8.216]
[1747647827335,4.14772828,2411.0,2410.6,12.36433771]
[1747647827655,10.07,2411.3,2410.6,12.36433771]
[1747647827656,14.21719169,2411.3,2410.6,9.21300981]
[1747647827860,4.14761599,2411.1,2410.6,13.36122652]
[1747647828057,4.14782008,2411.0,2410.6,9.21300981]
[1747647828226,4.14776864,2411.0,2410.6,9.21300981]
[1747647830240,4.14794434,2410.9,2410.6,9.21300981]
[1747647830961,0.8007,2411.4,2410.9,0.777]
[1747647831159,8.0008,2411.6,2411.3,0.777]
[1747647831160,0.0008,2411.6,2411.3,0.777]
[1747647832065,0.0008,2411.6,2411.5,4.14679659]
[1747647832360,0.0008,2411.6,2411.5,21.07296011]
[1747647832665,0.0008,2411.6,2411.5,23.1387926]
[1747647832829,0.0008,2411.6,2411.5,23.36860996]
[1747647834059,0.0008,2411.6,2411.5,24.42523798]
[1747647841438,0.1,2411.9,2411.8,4.14628078]
[1747647841638,0.1,2411.9,2411.8,22.8728601]
[1747647841841,0.1,2412.9,2412.8,4.89926233]
[1747647842089,0.1,2412.9,2412.8,21.13426233]
[1747647842384,0.1,2412.9,2412.8,29.13426233]
[1747647842757,0.1,2412.9,2412.8,29.68426233]
[1747647843079,0.1,2412.9,2412.8,31.79155834]
[1747647845292,0.1,2412.9,2412.8,31.92488166]
[1747647846090,0.1,2412.9,2412.8,2.99531933]
[1747647846297,0.1,2412.9,2412.8,0.13332332]
[1747647846298,5.07659056,2412.9,2412.8,0.13332332]
[1747647851894,5.07579056,2412.9,2412.8,0.13332332]
[1747647855936,0.9314,2412.9,2412.8,0.13332332]
[1747647856086,0.0992,2412.9,2412.8,0.13332332]
[1747647856421,4.24359056,2412.9,2412.8,0.13332332]